bitfinex/quotes_ETHUSD_20240608
["timestamp","ask_amount","ask_price","bid_price","bid_amount"]
[1717876104621,2.71291,3686.1,3685.7,0.56263768]
[1717876105579,4.41472574,3685.9,3685.7,0.56263768]
[1717876105740,2.4944,3685.5,3684.9,7.43]
[1717876105949,2.4944,3685.5,3685.1,0.723]
[1717876106254,2.4944,3685.5,3685.2,0.56291972]
[1717876106427,3.08065287,3685.5,3685.2,0.56291972]
[1717876109325,2.4944,3685.5,3685.2,0.56291972]
[1717876110422,2.7134,3685.4,3685.2,0.56291972]
[1717876110624,2.4024,3685.3,3685.2,0.56291972]
[1717876110862,2.71366,3685.1,3684.5,7.43]
[1717876111192,2.71366,3685.1,3684.3,2.4606]
[1717876111193,2.71366,3685.1,3684.7,0.723]
[1717876115683,2.71366,3685.1,3684.3,2.4606]
[1717876115887,2.71366,3685.1,3684.7,0.723]
[1717876118865,2.71366,3685.1,3684.9,0.723]
[1717876119262,2.71366,3685.1,3684.7,0.723]
[1717876120351,2.71366,3685.1,3684.9,0.723]
[1717876120549,2.71366,3685.1,3685.0,0.56313936]
[1717876122382,2.71366,3685.1,3685.0,0.56330373]
[1717876122589,2.71366,3685.1,3684.7,0.723]
[1717876122900,2.71366,3685.1,3684.8,0.56341658]
[1717876123204,2.71366,3685.1,3684.7,0.723]
[1717876123362,2.71366,3685.1,3684.8,0.56341658]
[1717876123558,2.71366,3685.1,3684.7,0.723]
[1717876123763,2.71366,3685.1,3684.8,0.56341658]
[1717876123964,2.71366,3685.1,3684.7,0.723]
[1717876124166,2.71366,3685.1,3684.8,0.56341658]
[1717876124397,2.71366,3685.1,3684.7,0.723]
[1717876124597,2.71366,3685.1,3684.8,0.56341658]
[1717876125086,2.71366,3685.1,3684.7,0.723]
[1717876125286,2.71366,3685.1,3684.9,0.56336015]
[1717876125528,2.71366,3685.1,3684.8,0.56341658]
[1717876125804,2.71366,3685.1,3685.0,0.56330373]
[1717876126096,2.71366,3685.1,3684.7,0.723]
[1717876126599,2.71366,3685.1,3684.8,0.56341658]
[1717876126804,2.71366,3685.1,3684.7,0.723]
[1717876126996,2.71366,3685.1,3684.8,0.56341658]
[1717876127500,2.71366,3685.1,3684.7,0.723]
[1717876127804,2.71366,3685.1,3684.8,0.56341658]
[1717876128006,2.71366,3685.1,3684.7,0.723]
[1717876128177,2.71366,3685.1,3684.8,0.56341658]
[1717876128501,2.71366,3685.1,3684.7,3.1601]
[1717876128706,2.71366,3685.1,3684.9,0.56336015]
[1717876128890,2.71366,3685.1,3684.8,0.56341658]
[1717876129093,2.71366,3685.1,3685.0,0.56330373]
[1717876129297,2.71366,3685.1,3684.9,1.28636015]
[1717876129503,2.71366,3685.1,3685.0,0.5633366]
[1717876132217,2.71334,3685.5,3685.0,0.5633366]
[1717876132381,2.71334,3685.5,3685.2,0.723]
[1717876135380,2.71334,3685.5,3685.3,0.56300712]
[1717876135576,2.71334,3685.5,3685.2,0.723]
[1717876135818,2.71334,3685.5,3685.3,0.56300712]
[1717876136006,2.71334,3685.5,3685.2,0.723]
[1717876136315,2.71334,3685.5,3685.3,0.56300712]
[1717876136615,2.71334,3685.5,3685.2,0.723]
[1717876136818,2.71334,3685.5,3685.3,0.56300712]
[1717876137019,2.71334,3685.5,3685.2,0.723]
[1717876137223,2.71334,3685.5,3685.3,0.56300712]
[1717876137723,2.71334,3685.5,3685.2,0.723]
[1717876137899,2.71334,3685.5,3685.4,0.56295071]
[1717876138523,2.71334,3685.5,3685.2,0.723]
[1717876138823,2.71334,3685.5,3685.3,0.56300712]
[1717876139024,2.71334,3685.5,3685.2,0.723]
[1717876139203,2.71334,3685.5,3685.4,0.56295071]
[1717876139404,2.71334,3685.5,3685.2,0.723]
[1717876139605,2.71334,3685.5,3685.4,0.56295071]
[1717876139805,2.71334,3685.5,3685.2,0.723]
[1717876140006,2.71334,3685.5,3685.3,0.56300712]
[1717876140208,2.71334,3685.5,3685.2,0.723]
[1717876140564,2.71334,3685.5,3685.3,0.56300712]
[1717876140938,2.71334,3685.5,3685.2,0.723]
[1717876141160,2.71334,3685.5,3685.4,0.56295071]
[1717876141294,2.71334,3685.5,3685.3,0.56300712]
[1717876141495,2.71334,3685.5,3685.4,0.56295071]
[1717876141928,2.71334,3685.5,3685.2,0.723]
[1717876142109,2.71334,3685.5,3685.4,0.56295071]
[1717876142628,2.71334,3685.5,3685.2,0.723]
[1717876142825,2.71334,3685.5,3685.3,0.56300712]
[1717876143128,2.71334,3685.5,3685.2,0.723]
[1717876143327,2.71334,3685.5,3685.4,0.56295071]
[1717876143930,2.71334,3685.5,3685.2,0.723]
[1717876144247,2.71334,3685.5,3685.3,0.56300712]
[1717876144622,2.71334,3685.5,3685.2,0.723]
[1717876144821,2.71334,3685.5,3685.3,0.56300712]
[1717876145048,2.71334,3685.5,3685.2,0.723]
[1717876145350,3.29940227,3685.9,3685.4,1.28595071]
[1717876145583,3.29940227,3685.9,3685.3,0.56300712]
[1717876145709,2.71306,3685.9,3685.2,0.723]
[1717876145906,2.71306,3685.9,3685.4,0.56295071]
[1717876146135,2.7132,3685.7,3685.3,0.56300712]
[1717876146340,2.7132,3685.7,3685.2,0.723]
[1717876146655,2.7132,3685.7,3685.3,0.56300712]
[1717876147008,2.7132,3685.7,3685.4,0.56295071]
[1717876147240,2.7132,3685.7,3685.2,0.723]
[1717876147424,2.7132,3685.7,3685.5,0.5628943]
[1717876147625,2.7132,3685.7,3685.2,0.723]
[1717876147847,2.7132,3685.7,3685.6,0.5628379]
[1717876148005,2.7132,3685.7,3685.2,0.723]
[1717876148213,2.7132,3685.7,3685.3,0.56300712]
[1717876148412,2.7132,3685.7,3685.2,0.723]
[1717876148634,2.7132,3685.7,3685.3,0.56300712]
[1717876148839,2.7132,3685.7,3685.2,0.723]
[1717876149044,2.7132,3685.7,3685.4,0.56295071]
[1717876149519,2.7132,3685.7,3685.2,0.723]
[1717876149953,2.7132,3685.7,3685.3,0.56300712]
[1717876150319,2.7132,3685.7,3685.2,0.723]
[1717876150512,2.7132,3685.7,3685.4,0.56295071]
[1717876150735,2.4554,3685.6,3685.4,0.56295071]
[1717876150971,2.4554,3685.6,3685.1,0.723]
[1717876151320,2.4554,3685.6,3685.2,0.56306353]
[1717876151634,2.71335,3685.5,3685.2,0.56306353]
[1717876151861,2.71335,3685.5,3684.9,0.723]
[1717876152342,2.71335,3685.5,3685.0,0.56317637]
[1717876154879,2.71335,3685.5,3685.0,1.28617637]
[1717876160390,2.71335,3685.5,3685.0,0.56317637]
[1717876160608,3.45883083,3685.5,3685.0,0.56317637]
[1717876160779,3.45883083,3685.5,3684.9,0.723]
[1717876160981,4.04521078,3685.5,3685.1,0.56318978]
[1717876161293,5.16901,3685.2,3685.0,0.5632462]
[1717876161453,5.16901,3685.2,3684.3,9.8652]
[1717876161793,6.86868837,3685.2,3684.5,0.723]
[1717876162169,0.58637995,3685.1,3684.6,0.56347602]
[1717876162603,0.58637995,3685.1,3684.5,0.723]
[1717876162895,7.45506832,3685.2,3684.6,0.56347602]
[1717876163186,0.58637995,3685.1,3684.6,0.56347602]
[1717876163390,2.7137,3685.0,3684.6,0.56347602]
[1717876163589,2.7137,3685.0,3684.5,0.723]
[1717876163793,2.7137,3685.0,3684.7,0.56341959]
[1717876163962,2.7137,3685.0,3684.6,0.56347602]
[1717876164292,2.7137,3685.0,3684.7,0.56341959]
[1717876164814,2.7137,3685.0,3684.5,0.723]
[1717876165384,2.7137,3685.0,3684.6,0.56347602]
[1717876165774,2.7137,3685.0,3684.5,0.723]
[1717876165969,2.7137,3685.0,3684.7,0.56341959]
[1717876166169,2.7137,3685.0,3684.6,0.56347602]
[1717876166371,2.7137,3685.0,3684.8,0.56336316]
[1717876166588,2.7137,3685.0,3684.7,0.56341959]
[1717876166786,2.7137,3685.0,3684.9,0.56330674]
[1717876167079,2.7137,3685.0,3684.9,0.56344237]
[1717876167265,2.7137,3685.0,3684.5,0.723]
[1717876167469,2.7137,3685.0,3684.9,0.56356154]
[1717876167667,2.7137,3685.0,3684.5,0.723]
[1717876167868,2.7137,3685.0,3684.9,0.56356154]
[1717876168174,2.7137,3685.0,3684.5,0.723]
[1717876168617,2.7137,3685.0,3684.6,0.56373083]
[1717876168789,2.7137,3685.0,3684.5,0.723]
[1717876169088,2.7137,3685.0,3684.6,0.56373083]
[1717876169387,2.7137,3685.0,3684.5,0.723]
[1717876169574,2.7137,3685.0,3684.6,0.56373083]
[1717876169773,2.7137,3685.0,3684.5,0.723]
[1717876170088,2.7137,3685.0,3684.6,0.56373083]
[1717876170394,2.7137,3685.0,3684.5,0.723]
[1717876170594,2.7137,3685.0,3684.6,0.56373083]
[1717876170799,2.7137,3685.0,3684.5,0.723]
[1717876171106,2.7137,3685.0,3684.6,0.56373083]
[1717876171509,2.7137,3685.0,3684.5,0.723]
[1717876171710,2.7137,3685.0,3684.7,0.5636744]
[1717876171869,2.7137,3685.0,3684.6,0.56373083]
[1717876172073,2.7137,3685.0,3684.8,0.56361797]
[1717876172375,2.7137,3685.0,3684.9,0.56356154]
[1717876172577,2.7137,3685.0,3684.5,0.723]
[1717876172831,2.7137,3685.0,3684.6,0.56373083]
[1717876172981,5.01275,3684.8,3684.0,2.4349]
[1717876173187,5.01275,3684.8,3684.1,0.56398016]
[1717876173388,5.01275,3684.8,3684.3,0.723]
[1717876173610,5.01275,3684.8,3684.4,0.56381083]
[1717876174846,2.71385,3684.8,3684.5,0.723]
[1717876175192,2.71385,3684.8,3684.6,0.56369795]
[1717876175687,2.71385,3684.8,3684.7,0.56364152]
[1717876176127,2.71385,3684.8,3684.5,0.723]
[1717876176313,2.71385,3684.8,3684.7,0.56364152]
[1717876176513,2.71385,3684.8,3684.6,0.56369795]
[1717876176721,2.71385,3684.8,3684.7,0.56364152]
[1717876177085,2.71385,3684.8,3684.5,0.723]
[1717876177285,2.71385,3684.8,3684.7,0.56364152]
[1717876177479,2.71385,3684.8,3684.6,0.56369795]
[1717876177686,2.71385,3684.8,3684.7,0.56364152]
[1717876177985,2.71385,3684.8,3684.5,0.723]
[1717876178327,2.71385,3684.8,3684.6,0.56369795]
[1717876178684,2.71385,3684.8,3684.5,0.723]
[1717876178885,2.71385,3684.8,3684.7,0.56359629]
[1717876179121,2.71385,3684.8,3684.6,0.56365272]
[1717876179282,2.71385,3684.8,3684.7,0.56359629]
[1717876179687,2.71385,3684.8,3684.7,0.723]
[1717876179978,2.71385,3684.8,3684.7,1.28659629]
[1717876181614,2.71357,3685.2,3684.7,1.28659629]
[1717876182033,2.71357,3685.2,3684.7,0.723]
[1717876192058,2.71357,3685.2,3684.8,2.3342]
[1717876192361,2.71357,3685.2,3684.9,0.56338481]
[1717876192660,2.71357,3685.2,3684.8,2.3342]
[1717876192873,2.71357,3685.2,3684.9,0.56338481]
[1717876193458,2.71357,3685.2,3685.0,0.56332839]
[1717876193663,2.71357,3685.2,3684.8,2.3342]
[1717876193866,2.71357,3685.2,3684.9,0.56338481]
[1717876194070,2.71357,3685.2,3684.8,2.3342]
[1717876194243,2.71357,3685.2,3684.9,0.56338481]
[1717876194442,2.71357,3685.2,3684.8,2.3342]
[1717876194751,2.71357,3685.2,3684.9,0.56338481]
[1717876195063,2.71357,3685.2,3684.8,2.3342]
[1717876195260,2.71357,3685.2,3684.9,0.56338481]
[1717876195466,2.71357,3685.2,3684.8,2.3342]
[1717876195675,2.71357,3685.2,3684.9,0.56338481]
[1717876195969,2.71357,3685.2,3684.8,2.3342]
[1717876196269,2.71357,3685.2,3684.9,0.56338481]
[1717876196460,2.71357,3685.2,3684.8,2.3342]
[1717876196629,2.71357,3685.2,3684.9,0.56338481]
[1717876196825,2.71357,3685.2,3684.8,2.3342]
[1717876197030,2.71357,3685.2,3684.9,0.56338481]
[1717876197226,2.71357,3685.2,3684.8,2.3342]
[1717876197432,2.71357,3685.2,3684.9,0.56338481]
[1717876197644,2.71357,3685.2,3684.8,2.3342]
[1717876197850,2.71357,3685.2,3684.9,0.56338481]
[1717876198069,2.71357,3685.2,3684.8,2.3342]
[1717876198260,2.71357,3685.2,3684.9,0.56338481]
[1717876198571,2.71357,3685.2,3684.8,2.3342]
[1717876198769,2.71357,3685.2,3685.0,0.56332839]
[1717876198975,2.71357,3685.2,3684.9,0.56338481]
[1717876199159,2.71357,3685.2,3685.1,0.56327197]
[1717876199355,2.71357,3685.2,3685.0,0.56332839]
[1717876199537,2.71357,3685.2,3685.1,0.56327197]
[1717876199939,2.71357,3685.2,3684.8,2.3342]
[1717876200142,2.71357,3685.2,3685.1,0.56327197]
[1717876200377,2.71357,3685.2,3684.8,2.3342]
[1717876200582,2.71357,3685.2,3685.1,0.56327197]
[1717876200801,2.71357,3685.2,3684.8,2.3342]
[1717876200802,2.71357,3685.2,3684.9,0.723]
[1717876201000,2.71357,3685.2,3685.1,0.56327197]
[1717876201174,2.71357,3685.2,3685.0,0.56332839]
[1717876201496,2.71357,3685.2,3685.1,0.56327197]
[1717876201890,2.71357,3685.2,3684.9,0.723]
[1717876202097,2.71357,3685.2,3685.1,0.56327197]
[1717876202300,2.71357,3685.2,3685.0,0.56325442]
[1717876202596,2.71357,3685.2,3685.1,0.563198]
[1717876203284,2.71357,3685.2,3684.9,0.723]
[1717876203596,2.71357,3685.2,3685.0,0.56325442]
[1717876204693,2.71357,3685.2,3685.1,0.563198]
[1717876204893,2.984927,3685.2,3685.1,0.563198]
[1717876205062,2.984927,3685.2,3684.5,0.723]
[1717876205257,5.27101289,3685.2,3684.6,0.56338151]
[1717876205670,3.57133452,3685.2,3684.6,0.56338151]
[1717876206078,5.27101289,3685.2,3684.6,0.56338151]
[1717876208186,3.57133452,3685.2,3684.6,0.56338151]
[1717876209270,3.29997752,3685.2,3684.6,0.56338151]
[1717876210099,3.29997752,3685.2,3684.7,0.723]
[1717876210266,3.29997752,3685.2,3684.8,0.56336727]
[1717876210461,3.29997752,3685.2,3684.7,0.723]
[1717876210702,3.29997752,3685.2,3684.8,0.56336727]
[1717876210876,3.30000331,3685.2,3684.8,0.56336727]
[1717876211090,3.30000331,3685.2,3684.7,0.723]
[1717876211370,3.30000331,3685.2,3684.8,0.56335494]
[1717876211673,3.30000331,3685.2,3684.7,0.723]
[1717876211886,3.30000331,3685.2,3684.8,0.56335494]
[1717876212088,3.30000331,3685.2,3684.7,0.723]
[1717876212266,3.30000331,3685.2,3684.8,0.56335494]
[1717876212471,3.30000331,3685.2,3684.7,0.723]
[1717876212718,4.99968168,3685.2,3684.8,0.56335494]
[1717876213218,4.99968168,3685.2,3684.7,0.723]
[1717876213539,4.99968168,3685.2,3684.8,0.56335494]
[1717876213871,4.99968168,3685.2,3684.7,0.723]
[1717876214072,4.99968168,3685.2,3684.8,0.56335494]
[1717876214299,4.99968168,3685.2,3684.7,0.723]
[1717876214511,4.99968168,3685.2,3684.8,0.56335494]
[1717876214875,4.99968168,3685.2,3684.7,0.723]
[1717876215082,4.99968168,3685.2,3684.8,0.56335494]
[1717876215280,4.99968168,3685.2,3684.7,0.723]
[1717876215473,4.99968168,3685.2,3684.8,0.56345358]
[1717876215675,4.99968168,3685.2,3684.7,0.723]
[1717876215893,4.99968168,3685.2,3684.8,0.56345358]
[1717876216095,4.99968168,3685.2,3684.7,0.723]
[1717876216313,4.99968168,3685.2,3684.8,0.56345358]
[1717876216793,4.99968168,3685.2,3684.7,0.723]
[1717876217205,4.99968168,3685.2,3684.8,0.56345358]
[1717876217605,4.99968168,3685.2,3684.7,0.723]
[1717876218141,4.99968168,3685.2,3684.8,0.56345358]
[1717876218493,4.99968168,3685.2,3684.7,0.723]
[1717876218721,4.99968168,3685.2,3684.8,0.56345358]
[1717876218924,5.73361985,3685.2,3684.8,0.56345358]
[1717876219135,2.7137,3685.0,3684.5,0.723]
[1717876219520,2.7137,3685.0,3684.6,0.56356233]
[1717876219931,2.7137,3685.0,3684.5,0.723]
[1717876220128,2.7137,3685.0,3684.7,0.5635059]
[1717876220319,2.7137,3685.0,3684.6,0.56356233]
[1717876220517,2.7137,3685.0,3684.8,0.56344947]
[1717876220721,2.7137,3685.0,3684.7,0.5635059]
[1717876220923,2.7137,3685.0,3684.5,0.723]
[1717876221108,2.7137,3685.0,3684.8,0.56344947]
[1717876221445,2.7137,3685.0,3684.5,0.723]
[1717876221806,2.7137,3685.0,3684.6,0.56356233]
[1717876222240,2.7137,3685.0,3684.5,0.723]
[1717876222436,2.7137,3685.0,3684.7,0.5635059]
[1717876222614,2.7137,3685.0,3684.6,0.56356233]
[1717876222809,2.7137,3685.0,3684.8,0.56344947]
[1717876223014,2.7137,3685.0,3684.7,0.5635059]
[1717876223440,2.7137,3685.0,3684.5,0.723]
[1717876223609,2.7137,3685.0,3684.8,0.56344947]
[1717876223810,2.7137,3685.0,3684.5,0.723]
[1717876224210,2.7137,3685.0,3684.6,0.56356233]
[1717876224939,2.7137,3685.0,3684.7,0.5635059]
[1717876225146,2.7137,3685.0,3684.5,0.723]
[1717876225347,2.7137,3685.0,3684.8,0.56344947]
[1717876225532,2.7137,3685.0,3684.5,0.723]
[1717876225935,2.7137,3685.0,3684.6,0.56356233]
[1717876226309,2.7137,3685.0,3684.5,0.723]
[1717876226505,2.7137,3685.0,3684.6,0.56356233]
[1717876227013,2.7137,3685.0,3684.5,0.723]
[1717876227214,2.7137,3685.0,3684.7,0.5635059]
[1717876227644,2.7137,3685.0,3684.5,0.723]
[1717876227854,2.7137,3685.0,3684.8,0.56344947]
[1717876228038,2.7137,3685.0,3684.5,0.723]
[1717876228423,2.7137,3685.0,3684.6,0.56356233]
[1717876229025,2.7137,3685.0,3684.5,0.723]
[1717876229256,2.7137,3685.0,3684.7,0.5635059]
[1717876229457,2.7137,3685.0,3684.6,0.56356233]
[1717876229618,2.7137,3685.0,3684.8,0.56344534]
[1717876229822,2.7137,3685.0,3684.7,0.56350176]
[1717876230126,2.7137,3685.0,3684.5,0.723]
[1717876230338,2.7137,3685.0,3684.8,0.56344534]
[1717876230539,2.7137,3685.0,3684.5,0.723]
[1717876230967,2.7137,3685.0,3684.6,0.5635582]
[1717876231366,2.7137,3685.0,3684.5,0.723]
[1717876231542,2.7137,3685.0,3684.7,0.56350176]
[1717876231859,2.7137,3685.0,3684.6,0.59766131]
[1717876232065,2.7137,3685.0,3684.8,0.5975466]
[1717876232264,2.7137,3685.0,3684.7,0.59760395]
[1717876232462,2.7137,3685.0,3684.5,0.723]
[1717876232463,2.7137,3685.0,3684.9,0.59748924]
[1717876232650,2.7137,3685.0,3684.8,0.5975466]
[1717876232965,2.7137,3685.0,3684.9,0.59748924]
[1717876233371,2.7137,3685.0,3684.5,0.723]
[1717876233583,2.7137,3685.0,3684.9,0.59748924]
[1717876233751,2.7137,3685.0,3684.5,0.723]
[1717876233938,2.7137,3685.0,3684.9,0.59748924]
[1717876234139,2.7137,3685.0,3684.5,0.723]
[1717876234760,2.7137,3685.0,3684.6,0.59766131]
[1717876235268,2.7137,3685.0,3684.7,0.59760395]
[1717876235431,2.7137,3685.0,3684.5,0.723]
[1717876235829,2.7137,3685.0,3684.6,0.59766131]
[1717876236035,2.7137,3685.0,3684.5,0.723]
[1717876236236,2.7137,3685.0,3684.6,0.59766131]
[1717876236434,2.7137,3685.0,3684.5,0.723]
[1717876236639,2.7137,3685.0,3684.4,2.2888]
[1717876236894,2.7137,3685.0,3684.6,0.59766131]
[1717876237092,2.7137,3685.0,3684.5,1.32071867]
[1717876244885,2.4482,3684.6,3684.5,0.59771867]
[1717876245189,2.4482,3684.6,3683.6,2.4195]
[1717876245190,2.71419,3684.4,3683.6,2.4195]
[1717876245388,2.4482,3684.3,3683.6,3.1425]
[1717876245934,2.4482,3684.3,3683.7,0.59820234]
[1717876246089,1.62140862,3684.2,3683.7,0.59820234]
[1717876246389,4.6560465,3684.3,3683.7,0.59820234]
[1717876246562,2.4482,3684.3,3683.7,0.59820234]
[1717876246761,3.03463788,3684.3,3683.7,0.59820234]
[1717876247164,2.4482,3684.3,3683.8,0.723]
[1717876247591,2.4482,3684.3,3683.9,0.59808757]
[1717876247960,2.4482,3684.3,3683.6,0.723]
[1717876248586,2.4482,3684.3,3683.7,0.59820234]
[1717876249560,2.71432,3684.2,3683.7,0.59820234]
[1717876254491,2.71432,3684.2,3683.8,0.723]
[1717876254666,2.71432,3684.2,3683.9,0.59830953]
[1717876254863,2.71432,3684.2,3683.8,0.723]
[1717876255095,2.71432,3684.2,3683.9,0.59830953]
[1717876255274,2.71432,3684.2,3683.8,0.723]
[1717876255459,2.71432,3684.2,3683.9,0.59830953]
[1717876255660,2.71432,3684.2,3683.8,0.723]
[1717876255899,2.71432,3684.2,3683.9,0.59830953]
[1717876256195,2.71432,3684.2,3683.8,0.723]
[1717876256390,2.71432,3684.2,3684.0,0.59825215]
[1717876256559,2.71432,3684.2,3683.9,0.59830953]
[1717876256760,2.71432,3684.2,3684.1,0.59819478]
[1717876257256,2.71432,3684.2,3683.8,0.723]
[1717876257459,2.71432,3684.2,3683.9,0.59830953]
[1717876257673,2.71432,3684.2,3683.8,0.723]
[1717876257871,2.71432,3684.2,3683.9,0.59830953]
[1717876258094,2.71432,3684.2,3683.8,0.723]
[1717876258408,2.71432,3684.2,3683.9,0.59830953]
[1717876258762,2.71432,3684.2,3683.8,0.723]
[1717876258997,2.71432,3684.2,3684.0,0.59825215]
[1717876259163,2.71432,3684.2,3683.8,0.723]
[1717876259498,2.71432,3684.2,3684.1,0.59819478]
[1717876259701,2.71432,3684.2,3683.8,0.723]
[1717876259875,2.71432,3684.2,3684.1,0.59819478]
[1717876260071,2.71432,3684.2,3683.8,0.723]
[1717876260286,2.71432,3684.2,3684.1,0.59819478]
[1717876260803,2.71432,3684.2,3683.8,0.723]
[1717876261096,2.71432,3684.2,3684.1,0.59819478]
[1717876261692,2.71432,3684.2,3683.8,0.723]
[1717876261896,2.71432,3684.2,3684.1,0.59819478]
[1717876262075,2.71432,3684.2,3683.8,0.723]
[1717876262276,2.71432,3684.2,3684.1,0.59819478]
[1717876262480,2.71432,3684.2,3683.8,0.723]
[1717876262663,2.71432,3684.2,3684.1,0.59819478]
[1717876262872,2.71432,3684.2,3683.8,0.723]
[1717876263064,2.71432,3684.2,3684.1,0.59819478]
[1717876263684,2.71432,3684.2,3683.8,0.723]
[1717876263885,2.71432,3684.2,3684.1,0.59819478]
[1717876264084,2.71432,3684.2,3683.8,0.723]
[1717876264291,2.71432,3684.2,3684.1,0.59819478]
[1717876264492,2.71432,3684.2,3683.8,0.723]
[1717876264698,2.71432,3684.2,3684.1,0.59819478]
[1717876264903,2.71432,3684.2,3683.8,3.1343]
[1717876265109,2.71432,3684.2,3684.1,0.59819478]
[1717876265598,2.71432,3684.2,3683.8,3.1343]
[1717876265929,2.71432,3684.2,3684.1,0.59819478]
[1717876266121,2.71432,3684.2,3683.8,3.1343]
[1717876266638,2.71432,3684.2,3683.9,0.59830953]
[1717876266784,2.71432,3684.2,3683.8,3.1343]
[1717876266985,2.71432,3684.2,3684.0,0.59825215]
[1717876267212,2.71432,3684.2,3683.8,3.1343]
[1717876267486,2.71432,3684.2,3684.1,0.59819478]
[1717876268023,2.71432,3684.2,3683.8,3.1343]
[1717876268489,2.71432,3684.2,3683.9,0.59830953]
[1717876268810,2.71432,3684.2,3683.8,3.1343]
[1717876269121,2.71432,3684.2,3684.0,0.59825215]
[1717876269319,6.74664084,3684.6,3684.1,0.59819478]
[1717876269615,3.6894165,3684.6,3684.0,0.723]
[1717876269822,3.6894165,3684.6,3684.2,0.59809627]
[1717876269985,3.6894165,3684.6,3684.0,0.723]
[1717876270525,5.31083734,3684.6,3684.1,0.59815364]
[1717876271018,3.6894165,3684.6,3684.2,0.59809627]
[1717876271320,5.31083734,3684.6,3684.2,0.59809627]
[1717876271532,5.31083734,3684.6,3684.0,0.723]
[1717876271732,5.31073244,3684.6,3684.0,0.723]
[1717876272022,5.31073244,3684.6,3684.1,0.59815364]
[1717876272222,5.31073244,3684.6,3684.0,0.723]
[1717876272409,5.31073244,3684.6,3684.2,0.59809627]
[1717876272719,0.83739576,3684.5,3684.1,0.59815364]
[1717876272911,4.33533594,3684.6,3683.9,0.723]
[1717876273109,1.62131594,3684.5,3684.2,0.59809627]
[1717876273442,1.62131594,3684.5,3683.9,0.723]
[1717876273809,1.62131594,3684.5,3684.0,0.59821102]
[1717876277835,1.6213226,3684.5,3684.0,0.59821102]
[1717876278244,2.71402,3684.6,3684.0,0.59821102]
[1717876278448,1.62131328,3684.5,3684.0,0.59821102]
[1717876279355,1.62132095,3684.5,3684.0,0.59821102]
[1717876285436,1.6213712,3684.5,3684.0,0.59821102]
[1717876287037,1.621395,3684.5,3684.0,0.59821102]
[1717876291257,1.621395,3684.4,3684.0,0.59821102]
[1717876294641,4.41538525,3684.6,3684.0,0.59821102]
[1717876294877,1.62139112,3684.4,3684.0,0.59821102]
[1717876302307,4.415564,3684.6,3684.0,0.59821102]
[1717876302595,1.62136416,3684.4,3684.0,0.59821102]
[1717876303469,1.62136416,3684.4,3683.8,2.4113]
[1717876303674,1.62136416,3684.3,3684.1,0.59813311]
[1717876303987,1.62136416,3684.3,3684.2,0.59807574]
[1717876304388,1.62136416,3684.3,3683.8,2.4113]
[1717876304758,1.62136416,3684.3,3683.9,1.32124787]
[1717876308522,1.62130072,3684.3,3683.9,1.32124787]
[1717876308869,1.70166784,3684.5,3683.9,1.32124787]
[1717876309075,1.62126782,3684.4,3683.9,0.59824787]
[1717876309400,1.62126782,3684.4,3683.8,2.4113]
[1717876309582,1.62126782,3684.4,3683.9,0.5982602]
[1717876309990,1.62082875,3684.3,3683.8,2.4113]
[1717876310192,1.62082875,3684.3,3684.0,0.59820282]
[1717876310407,1.62082875,3684.4,3684.1,0.59814544]
[1717876310594,1.62082875,3684.4,3683.8,2.4113]
[1717876310913,1.62082875,3684.4,3683.9,0.5982602]
[1717876311303,1.62082875,3684.4,3683.8,2.4113]
[1717876311511,1.62082875,3684.4,3684.0,0.59820282]
[1717876311815,1.62082875,3684.4,3683.9,0.5982602]
[1717876311978,1.62082875,3684.4,3684.1,0.59814544]
[1717876312379,1.62082875,3684.4,3684.2,0.59808807]
[1717876312683,1.62082875,3684.4,3683.8,2.4113]
[1717876313016,1.62082875,3684.4,3684.3,0.5980307]
[1717876313183,1.62082875,3684.4,3683.8,2.4113]
[1717876313502,1.62082875,3684.4,3683.9,0.5982602]
[1717876313698,1.62082875,3684.4,3683.8,2.4113]
[1717876313904,1.62082875,3684.4,3684.0,0.59820282]
[1717876314092,1.62082875,3684.4,3683.8,2.4113]
[1717876314293,1.62082875,3684.4,3684.1,0.59814544]
[1717876314503,1.62082875,3684.4,3683.8,2.4113]
[1717876314807,1.62082875,3684.4,3684.2,0.59808807]
[1717876315220,1.62082875,3684.4,3683.8,2.4113]
[1717876315583,1.62082875,3684.4,3684.3,0.5980307]
[1717876315821,2.2831347,3684.4,3683.8,2.4113]
[1717876316118,1.62065415,3684.4,3684.3,0.5982362]
[1717876316484,1.62065415,3684.4,3683.8,2.4113]
[1717876316714,1.62065415,3684.4,3684.3,0.5982362]
[1717876317016,1.62065415,3684.4,3683.8,2.4113]
[1717876317383,1.62065415,3684.4,3684.3,0.5982362]
[1717876317682,2.22428835,3684.4,3683.8,2.4113]
[1717876317879,1.62065415,3684.4,3684.3,0.5982362]
[1717876318082,1.62065415,3684.4,3683.8,2.4113]
[1717876318515,1.62065415,3684.4,3684.3,0.5982362]
[1717876318819,1.62065415,3684.4,3683.8,2.4113]
[1717876319183,1.62065415,3684.4,3683.9,0.5984657]
[1717876319585,1.62065415,3684.4,3684.0,0.59840832]
[1717876319792,1.62065415,3684.4,3683.8,2.4113]
[1717876319999,1.62065415,3684.4,3683.9,0.5984657]
[1717876320214,1.62065415,3684.4,3683.8,2.4113]
[1717876320686,1.62065415,3684.4,3683.9,0.5984657]
[1717876320887,1.62065415,3684.4,3683.8,2.4113]
[1717876321087,1.62065415,3684.4,3684.0,0.59840832]
[1717876321287,1.62065415,3684.4,3683.8,2.4113]
[1717876321509,1.62065415,3684.4,3684.1,0.59837147]
[1717876321719,1.62065415,3684.4,3683.8,2.4113]
[1717876322123,1.62065415,3684.4,3683.9,0.59848623]
[1717876322487,1.62065415,3684.4,3683.8,2.4113]
[1717876322815,1.62065415,3684.4,3683.9,0.59848623]
[1717876323019,1.62065415,3684.4,3683.8,2.4113]
[1717876323215,1.70166784,3684.5,3683.8,2.4113]